bitfinex/quotes_SOLUSD_20250517
["timestamp","ask_amount","ask_price","bid_price","bid_amount"]
[1747445156128,23.14,164.97,164.87,6.25281396]
[1747445156534,18.34449934,164.99,164.9,26.0]
[1747445156731,18.34449934,164.97,164.88,26.0]
[1747445156944,23.14,165.0,164.88,26.0]
[1747445157155,18.34449934,164.95,164.87,6.25281396]
[1747445157458,41.64449934,164.94,164.87,0.1875]
[1747445157649,18.34449934,164.93,164.87,0.1875]
[1747445157973,18.34449934,164.89,164.87,0.1875]
[1747445158161,18.34449934,164.9,164.87,0.1875]
[1747445158465,18.34449934,164.93,164.87,0.1875]
[1747445158640,18.34449934,164.92,164.87,0.1875]
[1747445158835,23.38,164.94,164.87,0.1875]
[1747445158836,18.34449934,164.9,164.87,0.1875]
[1747445159362,23.38,164.94,164.87,0.1875]
[1747445159363,18.34449934,164.88,164.87,0.1875]
[1747445159571,23.48,164.89,164.87,0.1875]
[1747445159735,41.80449934,164.9,164.87,0.1875]
[1747445160062,47.86878936,164.9,164.87,0.1875]
[1747445160255,41.80449934,164.9,164.87,0.1875]
[1747445160566,23.44,164.95,164.87,6.25274568]
[1747445160865,18.34449934,164.93,164.87,0.1875]
[1747445161245,18.34449934,164.88,164.87,0.1875]
[1747445161445,41.88449934,164.88,164.87,0.1875]
[1747445161650,23.54,164.88,164.87,0.1875]
[1747445161971,41.88449934,164.88,164.87,0.1875]
[1747445162169,18.34449934,164.89,164.87,0.1875]
[1747445162484,90.8,165.09,164.87,6.25277333]
[1747445162641,18.34449934,165.0,164.9,26.0]
[1747445163261,24.40400367,165.03,164.91,18.64964886]
[1747445163449,23.58,165.03,164.94,32.2051]
[1747445163662,18.34449934,165.07,164.99,6.06097339]
[1747445163663,23.58,165.07,164.99,6.06097339]
[1747445163968,23.6,165.09,164.99,21.21340687]
[1747445164265,24.39960076,165.15,165.04,26.0]
[1747445164468,23.6,165.13,165.04,26.0]
[1747445164645,41.94449934,165.13,165.04,26.0]
[1747445164844,23.6,165.13,165.04,26.0]
[1747445165058,41.48449934,165.12,164.96,6.06207565]
[1747445165261,18.34449934,165.03,164.96,6.06207565]
[1747445165456,23.68,165.03,164.96,6.06207565]
[1747445165657,24.40290234,165.06,164.96,6.06207565]
[1747445165839,6.058403,165.06,164.96,6.06207565]
[1747445166173,23.76,165.07,164.96,21.21726478]
[1747445167144,18.34449934,165.05,164.96,6.06207565]
[1747445167345,24.40290234,165.06,164.96,6.06207565]
[1747445167546,29.818403,165.06,164.96,6.06207565]
[1747445168673,18.34449934,165.04,164.96,6.06207565]
[1747445168847,18.34449934,165.04,164.95,32.06237524]
[1747445169272,44.96441051,165.06,164.91,23.14]
[1747445169572,18.34449934,165.03,164.92,26.0]
[1747445169871,44.96441051,165.06,164.92,26.0]
[1747445170170,48.16290234,165.06,164.93,18.64964886]
[1747445170502,29.738403,165.06,164.93,18.64964886]
[1747445170658,23.68,165.06,164.95,18.64964886]
[1747445170860,23.68,165.06,164.98,26.0]
[1747445171045,24.40186557,165.09,164.98,26.0]
[1747445171248,48.06186557,165.09,164.98,26.0]
[1747445171471,29.71736623,165.09,164.98,26.0]
[1747445171647,6.05736623,165.09,165.0,26.0]
[1747445172170,18.34449934,165.06,164.97,23.14]
[1747445172671,23.62,165.07,164.97,23.14]
[1747445172866,18.34449934,165.05,164.97,23.14]
[1747445173063,18.34449934,165.03,164.95,23.66]
[1747445173270,18.34449934,165.0,164.92,23.14]
[1747445173575,23.62,165.01,164.92,23.14]
[1747445173871,41.96449934,165.01,164.92,23.14]
[1747445174243,18.64964886,165.08,164.93,26.0]
[1747445174443,23.6,165.08,164.94,18.64964886]
[1747445174664,6.05803598,165.07,164.98,6.06134076]
[1747445175358,6.05803598,165.07,164.97,26.0]
[1747445175359,39.54762528,165.07,164.97,26.0]
[1747445175564,18.34449934,165.06,164.97,26.0]
[1747445175766,21.20312594,165.07,164.97,32.06151746]
[1747445176263,18.34449934,165.06,164.97,26.0]
[1747445176779,6.05877006,165.05,164.97,26.0]
[1747445176958,6.05877006,165.05,164.97,32.06146852]
[1747445177154,21.20569523,165.05,164.95,26.0]
[1747445177357,18.34449934,165.0,164.92,23.14]
[1747445177564,18.34449934,164.99,164.92,23.14]
[1747445177886,18.34449934,164.98,164.87,23.3275]
[1747445178179,18.34449934,164.98,164.9,26.0]
[1747445178366,23.58,165.03,164.9,26.0]
[1747445178554,18.34449934,164.98,164.9,26.0]
[1747445178753,6.06170818,164.97,164.87,23.3275]
[1747445179366,33.49443893,165.02,164.92,26.0]
[1747445179649,29.57950433,165.03,164.92,26.0]
[1747445180488,29.57950433,165.03,164.93,6.06317831]
[1747445180891,29.57950433,165.03,164.93,24.71282717]
[1747445182186,44.72826516,165.03,164.93,6.06317831]
[1747445182389,18.34449934,165.02,164.92,6.06350641]
[1747445182768,44.72826516,165.03,164.87,23.3275]
[1747445182769,18.34449934,164.99,164.87,23.3275]
[1747445182964,18.34449934,164.97,164.88,6.06501698]
[1747445183167,18.34449934,164.97,164.88,32.06501698]
[1747445183364,44.72826516,165.03,164.87,23.3275]
[1747445183365,18.34449934,164.96,164.87,23.3275]
[1747445183578,18.34449934,164.97,164.87,23.3275]
[1747445183783,18.34449934,164.99,164.87,29.39272829]
[1747445184096,18.34449934,164.97,164.87,29.39272829]
[1747445184303,6.06207565,164.96,164.87,49.3275]
[1747445184509,18.34449934,164.95,164.87,23.3275]
[1747445184795,6.06207565,164.96,164.88,26.0]
[1747445186381,24.40657499,164.96,164.88,26.0]
[1747445186987,18.34449934,164.95,164.87,0.1875]
[1747445187173,18.34449934,164.94,164.87,0.1875]
[1747445188073,18.34449934,164.95,164.87,0.1875]
[1747445188275,39.56176412,164.96,164.87,0.1875]
[1747445188908,18.34449934,164.95,164.87,0.1875]
[1747445189077,18.34449934,164.93,164.87,0.1875]
[1747445189281,18.34449934,164.92,164.87,0.1875]
[1747445189697,18.34449934,164.91,164.87,0.1875]
[1747445189977,21.21726478,164.96,164.87,0.1875]
[1747445190178,44.47726478,164.96,164.87,6.25284665]
[1747445191413,6.05987153,165.02,164.91,6.1037]
[1747445191571,6.05987153,165.02,164.94,26.0]
[1747445192195,6.05987153,165.02,164.92,26.0]
[1747445192196,24.40437087,165.02,164.92,26.0]
[1747445192402,18.34449934,165.0,164.91,6.1037]
[1747445192877,6.05987153,165.02,164.91,24.75334886]
[1747445193279,39.55317052,165.03,164.92,6.06354596]
[1747445193502,62.79317052,165.03,164.92,6.06354596]
[1747445194218,18.34449934,165.01,164.91,6.1037]
[1747445194379,18.34449934,165.0,164.91,6.1037]
[1747445194579,44.44867118,165.03,164.91,12.16725366]
[1747445194777,18.34449934,165.01,164.91,6.1037]
[1747445195201,6.06060606,165.0,164.91,12.16759487]
[1747445196501,6.06060606,165.0,164.91,30.81724373]
[1747445196699,6.05987153,165.02,164.94,26.0]
[1747445197115,21.19798921,165.11,164.95,46.18264886]
[1747445197284,18.34449934,165.1,164.99,26.0]
[1747445197602,18.34449934,165.07,164.97,44.64964886]
[1747445197811,18.34449934,165.06,164.97,26.0]
[1747445198602,18.34449934,165.06,164.95,57.11536764]
[1747445198982,18.34449934,165.02,164.95,1.533]
[1747445199210,6.06060606,165.0,164.95,1.533]
[1747445200099,39.55662055,165.0,164.92,26.0]
[1747445200307,18.34449934,164.99,164.91,6.1037]
[1747445200601,41.50449934,164.99,164.91,6.1037]
[1747445200808,23.16,164.99,164.91,6.1037]
[1747445200994,23.16,164.99,164.91,12.16754015]
[1747445201197,29.22115903,164.99,164.91,12.16754015]
[1747445201406,6.05987153,165.02,164.94,26.0]
[1747445201878,6.05913717,165.04,164.94,26.0]
[1747445202086,6.05913717,165.04,164.95,18.64964886]
[1747445202386,6.057669,165.08,164.99,1.533]
[1747445202601,6.057669,165.08,165.0,6.2342]
[1747445202793,23.16,165.15,165.04,18.64964886]
[1747445202995,23.16,165.15,165.07,26.0]
[1747445203208,6.05400169,165.18,165.09,6.05730207]
[1747445203409,6.05400169,165.18,165.09,1.533]
[1747445203712,21.18900592,165.18,165.09,1.533]
[1747445204211,6.05400169,165.18,165.09,1.533]
[1747445204582,21.18900592,165.18,165.09,1.533]
[1747445204815,39.53350526,165.18,165.09,1.533]
[1747445205017,18.34449934,165.17,165.09,1.533]
[1747445205193,18.34449934,165.14,165.05,26.0]
[1747445205512,6.05583479,165.13,165.05,26.0]
[1747445206213,24.39886756,165.17,165.05,26.0]
[1747445206410,29.21436822,165.17,165.05,26.0]
[1747445206806,6.05436822,165.17,165.06,18.64964886]
[1747445206993,6.05409003,165.18,165.11,26.0]
[1747445207198,6.05409003,165.18,165.11,32.046]
[1747445208416,6.05326876,165.2,165.11,38.1025499]
[1747445208619,6.05326876,165.2,165.12,1.5863]
[1747445209913,24.3977681,165.2,165.12,1.5863]
[1747445210086,23.16,165.21,165.12,7.64239517]
[1747445210708,6.05224642,165.23,165.14,26.0]
[1747445210911,29.21224642,165.23,165.14,26.0]
[1747445211627,6.05326876,165.2,165.12,7.64239517]
[1747445211786,6.0528737,165.22,165.12,7.64239517]
[1747445212415,18.34449934,165.19,165.12,1.5863]
[1747445212590,18.34449934,165.18,165.12,1.5863]
[1747445212794,41.48449934,165.18,165.12,1.5863]
[1747445213212,18.34449934,165.16,165.08,26.0]
[1747445213385,18.34449934,165.15,165.08,26.0]
[1747445213591,6.05546808,165.14,165.08,26.0]
[1747445214524,18.34449934,165.12,165.06,8.0878]
[1747445214898,18.34449934,165.09,165.01,23.14]
[1747445215215,18.34449934,165.09,165.0,14.14838523]
[1747445215428,23.14,165.11,165.01,18.64964886]
[1747445215593,6.0560128,165.13,165.05,6.05877006]
[1747445215800,47.54051214,165.13,165.04,32.05907809]
[1747445216112,47.54051214,165.13,165.02,26.0]
[1747445216113,18.34449934,165.11,165.02,26.0]
[1747445216506,29.1960128,165.13,165.02,26.0]
[1747445216507,18.34449934,165.12,165.02,26.0]
[1747445216698,18.34449934,165.1,165.01,6.06023877]
[1747445216891,44.33559979,165.13,165.02,26.0]
[1747445217122,18.34449934,165.12,165.02,26.0]
[1747445217301,47.54051214,165.13,165.03,18.64964886]
[1747445217499,29.1960128,165.13,165.03,18.64964886]
[1747445217721,6.05656834,165.11,165.02,6.05959608]
[1747445217914,6.05656834,165.11,165.03,26.0]
[1747445218518,6.05656834,165.11,165.01,32.06015229]
[1747445218722,18.34449934,165.1,165.01,32.06015229]
[1747445218902,6.05656834,165.11,165.01,32.06015229]
[1747445219110,24.40106768,165.11,165.01,32.06015229]
[1747445219494,6.05656834,165.11,165.01,32.06015229]
[1747445219924,23.14,165.15,165.05,18.64964886]
[1747445220896,24.39996742,165.14,165.04,26.0]
[1747445221123,24.39996742,165.14,165.05,26.0]
[1747445221426,6.05520272,165.15,165.07,26.0]
[1747445221928,6.05476661,165.16,165.07,26.0]
[1747445222307,6.05326876,165.2,165.1,26.0]
[1747445222511,6.05326876,165.2,165.12,26.0]
[1747445223126,6.05253601,165.22,165.13,6.05583479]
[1747445223527,18.34449934,165.2,165.1,1.5307]
[1747445223834,18.34449934,165.18,165.1,1.5307]
[1747445224125,23.14,165.17,165.1,1.5307]
[1747445224428,41.48449934,165.17,165.1,1.5307]
[1747445224632,18.34449934,165.16,165.1,1.5307]
[1747445225126,6.0547348,165.16,165.1,1.5307]
[1747445226523,18.34449934,165.11,165.04,7.7554]
[1747445226725,28.04057649,165.16,165.04,7.7554]
[1747445226937,18.34449934,165.13,165.04,7.7554]
[1747445227140,24.39923414,165.16,165.05,26.0]
[1747445227442,18.34449934,165.14,165.05,26.0]
[1747445227738,18.34449934,165.11,165.04,7.7554]
[1747445227919,18.34449934,165.09,165.0,12.24917686]
[1747445228322,6.057669,165.08,165.0,6.1886]
[1747445228525,24.40216834,165.08,165.0,12.24907279]
[1747445228828,24.40216834,165.08,165.0,38.24907505]
[1747445229019,6.057669,165.08,165.0,38.24907505]
[1747445229220,6.057669,165.08,165.0,32.1886]
[1747445229415,6.057669,165.08,165.0,6.1886]
[1747445229620,18.34449934,165.06,165.0,6.1886]
[1747445230424,18.34449934,165.03,164.96,6.1886]
[1747445231632,39.55019457,165.05,164.96,12.25063372]
[1747445231918,23.14,165.04,164.96,53.40582285]
[1747445232222,29.19809675,165.07,164.96,53.40582285]
[1747445232438,23.14,165.07,165.0,6.06060606]
[1747445232946,23.14,165.09,165.0,6.06060606]
[1747445233146,23.14,165.11,165.03,26.0]
[1747445233339,6.05583479,165.13,165.04,26.0]
[1747445233529,6.05583479,165.13,165.04,27.5668]
[1747445233843,23.14,165.17,165.05,24.83824886]
[1747445234245,6.05400169,165.18,165.08,26.0]
[1747445234541,6.05400169,165.18,165.09,6.05730207]
[1747445236043,18.34449934,165.17,165.06,6.058403]
[1747445236259,18.34449934,165.15,165.06,32.058403]
[1747445236545,23.14,165.19,165.05,29.3286]
[1747445236546,24.40070089,165.12,165.05,6.1886]
[1747445236723,18.34449934,165.1,165.04,1.5668]
[1747445236927,44.33670542,165.12,165.04,7.62591199]
[1747445236928,23.14,165.12,165.04,7.62591199]
[1747445237622,18.34449934,165.11,165.04,1.5668]
[1747445237822,41.48449934,165.12,165.04,7.62572463]
[1747445238546,29.19656202,165.12,165.04,7.62572463]
[1747445240543,23.14,165.12,165.04,7.62572463]
[1747445240728,18.34449934,165.15,165.04,22.77356757]
[1747445240927,23.12,165.15,165.04,22.77356757]
[1747445241248,23.12,165.18,165.09,18.64964886]
[1747445241425,18.34449934,165.22,165.11,44.64964886]
[1747445241627,23.12,165.22,165.11,44.64964886]
[1747445241937,6.05107103,165.26,165.14,26.0]
[1747445242134,47.51557037,165.26,165.15,1.6466]
[1747445242341,29.17107103,165.26,165.16,6.0547348]
[1747445242543,6.05074028,165.27,165.16,6.0547348]
[1747445242753,29.17074028,165.27,165.18,26.0]
[1747445243124,6.05074028,165.27,165.18,26.0]
[1747445243643,41.46449934,165.29,165.21,6.2072]
[1747445243644,6.05043565,165.28,165.21,6.2072]
[1747445243843,6.05004831,165.29,165.21,6.2072]
[1747445244442,6.04960677,165.3,165.22,6.05253601]
[1747445246256,29.16920107,165.32,165.22,6.05253601]
[1747445246427,6.04860464,165.33,165.25,26.0]
[1747445246924,24.39272005,165.34,165.25,26.0]
[1747445247249,6.04779032,165.35,165.26,1.5996]
[1747445247633,6.04779032,165.35,165.27,6.0507049]
[1747445248662,8.54564338,165.37,165.27,6.0507049]
[1747445248852,29.14708312,165.37,165.27,6.0507049]
[1747445249052,29.14708312,165.37,165.26,1.5996]
[1747445249267,18.34449934,165.35,165.26,7.65054528]
[1747445249866,24.39158246,165.37,165.26,7.65054528]
[1747445250177,29.14708312,165.37,165.27,18.64964886]
[1747445250668,29.14708312,165.37,165.28,6.05033881]
[1747445250847,47.49158246,165.37,165.28,6.05033881]
[1747445251171,29.14708312,165.37,165.28,32.05033881]
[1747445251468,23.1,165.37,165.28,47.17618585]
[1747445251770,24.39086757,165.39,165.31,26.0]
[1747445251970,8.54564338,165.42,165.31,32.2834]
[1747445252278,8.54564338,165.47,165.36,1.5646]
[1747445252436,18.34449934,165.48,165.36,1.5646]
[1747445252769,15.10703476,165.49,165.37,32.04704601]
[1747445252770,24.38825613,165.46,165.37,32.04704601]
[1747445253233,6.04375679,165.46,165.37,32.04704601]
[1747445253429,6.04375679,165.46,165.36,1.5646]
[1747445253635,18.34449934,165.43,165.36,1.5646]
[1747445254260,18.34449934,165.42,165.36,1.5646]
[1747445254468,18.34449934,165.43,165.36,1.5646]
[1747445254759,24.38971757,165.42,165.36,1.5646]
[1747445254928,18.34449934,165.41,165.33,26.0]
[1747445255129,18.34449934,165.41,165.33,32.04842816]
[1747445255329,18.34449934,165.41,165.33,26.0]
[1747445256339,18.34449934,165.38,165.31,7.848]
[1747445256875,6.04704601,165.37,165.31,7.848]
[1747445257654,24.39154535,165.37,165.31,7.848]
[1747445257963,18.34449934,165.36,165.27,6.0311]
[1747445258359,6.04704601,165.37,165.27,6.0311]
[1747445258360,18.34449934,165.34,165.27,6.0311]
[1747445258558,18.34449934,165.32,165.27,6.0311]
[1747445258772,18.34449934,165.33,165.27,6.0311]
[1747445258962,6.0488749,165.32,165.27,6.0311]
[1747445259346,18.34449934,165.35,165.27,12.08153148]
[1747445259546,29.1274117,165.36,165.27,12.08153148]
[1747445260147,47.47191104,165.36,165.27,12.08153148]
[1747445260660,29.1274117,165.36,165.27,12.08153148]
[1747445260980,18.34449934,165.35,165.27,12.08176013]
[1747445261880,18.34449934,165.38,165.28,18.64964886]
[1747445262184,41.40449934,165.42,165.31,18.64964886]
[1747445262557,6.0448528,165.43,165.31,18.64964886]
[1747445262752,6.0448528,165.43,165.34,26.0]
[1747445262984,18.34449934,165.44,165.35,6.04777744]
[1747445263558,6.04412209,165.45,165.35,6.04777744]
[1747445263766,18.34449934,165.44,165.35,6.04777744]
[1747445264067,6.0448528,165.43,165.35,6.04777744]
[1747445265195,6.04448742,165.44,165.35,6.04777744]
[1747445265369,30.76786004,165.49,165.36,8.143]
[1747445265370,23.06,165.46,165.36,8.143]
[1747445265569,18.34449934,165.44,165.36,8.143]
[1747445265780,10.0,165.61,165.39,26.0]
[1747445265978,10.0,165.61,165.41,26.0]
[1747445265979,18.34449934,165.51,165.41,26.0]
[1747445266162,23.06,165.53,165.41,26.0]
[1747445266369,18.34449934,165.49,165.38,23.06]
[1747445266581,18.34449934,165.46,165.36,8.143]
[1747445266886,18.34449934,165.46,165.39,26.0]
[1747445267091,18.34449934,165.47,165.39,26.0]
[1747445267290,6.04328623,165.48,165.4,6.04594921]
[1747445267463,18.34449934,165.47,165.39,32.04627044]
[1747445267658,6.04328623,165.48,165.39,32.04627044]
[1747445267875,24.38778557,165.48,165.39,32.04627044]
[1747445268113,18.34449934,165.47,165.39,32.04627044]
[1747445268598,24.38825613,165.46,165.4,26.0]
[1747445268783,18.34449934,165.44,165.37,26.0]
[1747445269180,18.34449934,165.45,165.37,26.0]
[1747445269796,6.04448742,165.44,165.37,26.0]
[1747445269992,6.04375679,165.46,165.37,32.04692995]
[1747445270497,23.04,165.47,165.38,18.64964886]
[1747445270698,29.08353751,165.47,165.38,18.64964886]
[1747445271595,23.04,165.47,165.41,26.0]
[1747445272010,23.04,165.47,165.41,32.04554973]
[1747445272374,6.0431407,165.48,165.41,32.04554973]
[1747445272673,18.34449934,165.47,165.36,8.143]
[1747445272874,6.0431407,165.48,165.37,6.04704601]
[1747445272875,18.34449934,165.46,165.37,6.04704601]
[1747445273074,6.0431407,165.48,165.39,26.0]
[1747445273387,18.34449934,165.47,165.39,26.0]
[1747445273791,6.04375679,165.46,165.39,26.0]
[1747445275304,24.38825613,165.46,165.39,26.0]
[1747445276107,90.12,165.59,165.43,26.0]
[1747445276279,18.34449934,165.53,165.44,7.9667]
[1747445276475,44.34449934,165.53,165.44,7.9667]
[1747445277173,26.0,165.53,165.44,7.9667]
[1747445277374,12.33371709,165.55,165.44,26.61634886]
[1747445277615,12.33371709,165.56,165.46,26.0]
[1747445277899,38.33371709,165.57,165.46,26.0]
[1747445278099,21.13442962,165.61,165.5,26.0]
[1747445278410,6.03828271,165.61,165.5,26.0]
[1747445278581,12.33371709,165.6,165.5,18.64964886]
[1747445279107,18.3719998,165.61,165.5,18.64964886]
[1747445279311,24.24032912,165.61,165.5,18.64964886]
[1747445279488,39.3360359,165.61,165.5,24.69187002]
[1747445279687,21.13398949,165.61,165.53,26.0]
[1747445279911,21.13398949,165.61,165.54,6.4614]
[1747445280116,6.03828271,165.61,165.54,6.4614]
[1747445280289,24.23923549,165.64,165.55,23.02]
[1747445280609,24.23923549,165.64,165.54,32.4614]
[1747445280610,18.20204641,165.63,165.54,32.4614]
[1747445280779,18.20204641,165.63,165.5,140.74222116]
[1747445280780,18.20204641,165.58,165.49,29.4814]
[1747445280981,18.20204641,165.57,165.49,29.4814]
[1747445281281,18.20204641,165.58,165.49,29.4814]
[1747445281500,6.03974149,165.57,165.49,55.4814]
[1747445282210,6.03974149,165.57,165.49,6.4614]
[1747445282211,18.20204641,165.55,165.49,6.4614]
[1747445282509,18.20204641,165.53,165.44,6.4614]
[1747445282811,23.0,165.54,165.45,26.0]
[1747445283310,39.34114164,165.57,165.49,26.0]
[1747445283504,21.13909523,165.57,165.49,26.0]
[1747445283676,6.03974149,165.57,165.51,26.0]
[1747445285023,6.03864734,165.6,165.53,7.9667]
[1747445285181,6.03864734,165.6,165.54,18.64964886]
[1747445285387,6.03755358,165.63,165.57,26.0]
[1747445285616,24.23850662,165.66,165.57,26.0]
[1747445285914,18.20204641,165.64,165.57,26.0]
[1747445286081,18.20204641,165.65,165.57,26.0]
[1747445286483,18.20204641,165.61,165.53,33.9667]
[1747445286709,26.0,165.64,165.53,33.9667]
[1747445286710,18.64964886,165.63,165.53,33.9667]
[1747445286915,18.20204641,165.6,165.53,33.9667]
[1747445287117,18.20204641,165.62,165.53,33.9667]
[1747445287323,51.30991184,165.66,165.53,33.9667]
[1747445287491,6.03718908,165.64,165.57,26.0]
[1747445288421,18.20204641,165.63,165.53,7.9667]
[1747445288636,18.20204641,165.62,165.53,30.9867]
[1747445288927,18.20204641,165.62,165.49,6.1623]
[1747445288928,18.20204641,165.57,165.49,6.1623]
[1747445289312,18.20204641,165.57,165.49,32.1623]
[1747445289528,6.0401063,165.56,165.49,32.1623]
[1747445289703,6.0401063,165.56,165.49,6.1623]
[1747445289904,6.0401063,165.56,165.5,26.0]
[1747445290252,18.20204641,165.53,165.48,1.5134]
[1747445290605,62.32241847,165.56,165.48,1.5134]
[1747445290907,18.20204641,165.54,165.48,1.5134]
[1747445291332,18.20204641,165.55,165.48,1.5134]
[1747445291501,18.20204641,165.54,165.48,1.5134]
[1747445291702,6.04120099,165.53,165.48,1.5134]
[1747445291906,6.04120099,165.53,165.44,6.1623]
[1747445291907,18.20204641,165.52,165.44,6.1623]
[1747445292106,18.20204641,165.46,165.39,6.0022]
[1747445292306,18.20204641,165.42,165.37,1.503]
[1747445292506,18.20204641,165.42,165.35,6.0022]
[1747445292731,18.20204641,165.41,165.35,6.0022]
[1747445293112,18.20204641,165.42,165.35,6.0022]
[1747445293330,18.20204641,165.43,165.35,6.0022]
[1747445293508,67.62964886,165.48,165.38,26.0]
[1747445293703,6.04448742,165.44,165.38,26.0]
[1747445293910,18.20204641,165.48,165.38,26.0]
[1747445294112,6.04339155,165.47,165.39,18.64964886]
[1747445294848,6.04266118,165.49,165.42,26.0]
[1747445295148,6.04266118,165.49,165.43,1.503]
[1747445295705,6.04266118,165.49,165.38,6.04654921]
[1747445295706,6.04339155,165.47,165.4,26.0]
[1747445295934,24.24543796,165.47,165.4,26.0]
[1747445296115,39.35391683,165.47,165.4,26.0]
[1747445296527,6.04339155,165.47,165.4,26.0]
[1747445296705,6.04266118,165.49,165.41,18.64964886]
[1747445297024,6.04120099,165.53,165.46,18.64964886]
[1747445297400,6.04120099,165.53,165.49,26.0]
[1747445298011,6.04120099,165.53,165.49,27.5877]
[1747445298217,6.0401063,165.56,165.49,27.5877]
[1747445298426,6.0401063,165.56,165.5,18.64964886]
[1747445298722,6.03901201,165.59,165.5,18.64964886]
[1747445299118,6.03901201,165.59,165.53,26.0]
[1747445299315,6.038677,165.6,165.54,18.64964886]
[1747445299517,6.038677,165.6,165.55,6.2958]
[1747445300851,15.09414208,165.63,165.55,6.2958]
[1747445301518,6.03718908,165.64,165.58,26.0]
[1747445302547,6.03682463,165.65,165.58,26.0]
[1747445302743,21.1288862,165.65,165.58,26.0]
[1747445302956,6.87235512,165.72,165.59,1.5877]
[1747445303265,21.1174128,165.74,165.64,26.0]
[1747445303651,18.20204641,165.72,165.64,26.0]
[1747445303959,18.20204641,165.71,165.59,1.5877]
[1747445304170,18.20204641,165.7,165.62,26.0]
[1747445304465,18.20204641,165.67,165.59,1.5877]
[1747445304655,18.20204641,165.65,165.59,1.5877]
[1747445304846,18.20204641,165.66,165.59,1.5877]
[1747445306070,18.20204641,165.65,165.59,1.5877]
[1747445306263,18.20204641,165.63,165.55,6.2958]
[1747445306764,26.0,165.65,165.55,6.2958]
[1747445306765,24.23996453,165.62,165.55,6.2958]
[1747445306963,21.13271343,165.62,165.55,6.2958]
[1747445307649,39.33475984,165.62,165.55,6.2958]
[1747445308180,18.20204641,165.61,165.55,6.2958]
[1747445308465,18.20204641,165.61,165.54,27.5877]
[1747445308466,18.20204641,165.56,165.49,1.5877]
[1747445308673,6.04047115,165.55,165.5,26.0]
[1747445309753,6.0401063,165.56,165.5,26.0]
[1747445310956,21.14037206,165.56,165.49,1.5877]
[1747445311465,39.34241847,165.56,165.49,1.5877]
[1747445311672,18.20204641,165.54,165.47,6.2958]
[1747445311861,18.20204641,165.54,165.47,32.2958]
[1747445312056,18.20204641,165.55,165.47,32.2958]
[1747445312280,39.34241847,165.56,165.47,32.2958]
[1747445312868,21.14037206,165.56,165.47,32.2958]
[1747445313959,39.34241847,165.56,165.47,32.2958]
[1747445316081,18.20204641,165.55,165.47,32.2958]
[1747445317087,18.20204641,165.51,165.44,1.5206]
[1747445317751,18.20204641,165.52,165.44,1.5206]
[1747445318154,21.14292617,165.54,165.46,26.0]
[1747445318352,6.04083605,165.54,165.48,26.0]
[1747445318954,21.14037206,165.56,165.48,26.0]
[1747445319158,18.20204641,165.55,165.48,26.0]
[1747445319384,18.20204641,165.54,165.46,26.0]
[1747445319587,18.20204641,165.55,165.46,26.0]
[1747445319884,18.20204641,165.54,165.46,26.0]
[1747445320811,18.20204641,165.55,165.46,26.0]
[1747445321086,21.14292617,165.54,165.46,26.0]
[1747445321664,21.14292617,165.54,165.47,26.0]
[1747445322885,15.10209012,165.54,165.47,26.0]
[1747445323072,33.30413653,165.54,165.47,26.0]
[1747445323481,18.20204641,165.53,165.47,26.0]
[1747445323673,6.04047115,165.55,165.46,26.0]
[1747445323986,6.03864734,165.6,165.47,18.64964886]
[1747445324188,24.24069375,165.6,165.5,26.0]
[1747445324774,21.13781857,165.58,165.48,26.0]
[1747445324976,21.13781857,165.58,165.5,26.0]
[1747445325676,6.03937673,165.58,165.5,26.0]
[1747445325871,6.03864734,165.6,165.52,18.64964886]
[1747445326065,6.03864734,165.6,165.53,1.6076]
[1747445326482,6.03864734,165.6,165.53,27.6076]
[1747445326888,6.03828271,165.61,165.53,27.6076]
[1747445327889,6.03828271,165.61,165.55,26.0]
[1747445328764,6.03791812,165.62,165.55,26.0]
[1747445328965,39.33475984,165.62,165.55,26.0]
[1747445329363,33.45292562,165.62,165.55,26.0]
[1747445330198,21.13271343,165.62,165.55,26.0]
[1747445332098,15.09479531,165.62,165.55,26.0]